bitfinex/quotes_ETHUSD_20220123
["timestamp","ask_amount","ask_price","bid_price","bid_amount"]
[1642941372627,1.26592007,2494.7,2494.3,0.01289765]
[1642941373027,2.007e-05,2494.7,2494.4,3.53445256]
[1642941373278,2.007e-05,2494.7,2494.4,3.23445256]
[1642941373472,2.007e-05,2494.7,2494.4,3.03412256]
[1642941373671,7.48,2495.6,2494.6,0.20033]
[1642941373873,7.48,2495.6,2495.3,1.28132137]
[1642941374273,7.48,2495.6,2495.4,0.27002835]
[1642941377329,0.13819997,2495.7,2495.4,0.27002835]
[1642941378931,0.13819997,2495.7,2495.6,1.20819442]
[1642941379733,0.13819997,2495.7,2495.4,0.27002835]
[1642941380035,0.13819997,2495.7,2494.8,1.4679]
[1642941380235,0.13819997,2495.7,2494.8,0.3]
[1642941380436,0.13819997,2495.7,2494.7,0.3]
[1642941380634,0.13819997,2495.7,2494.7,0.6]
[1642941380884,0.13819997,2495.7,2495.6,1.47985383]
[1642941381084,0.13819997,2495.7,2495.6,2.74262366]
[1642941381281,2.40577968,2495.7,2495.6,2.74262366]
[1642941383783,0.13819997,2495.7,2495.6,2.74262366]
[1642941383983,1.0,2495.9,2495.6,2.74262366]
[1642941384184,0.13819997,2496.0,2495.6,2.74262366]
[1642941385432,1.13819997,2496.0,2495.6,2.74262366]
[1642941385637,0.13819997,2496.0,2495.6,2.74262366]
[1642941385835,1.13819997,2496.0,2495.6,2.74262366]
[1642941386336,11.7851,2496.3,2495.6,3.84102366]
[1642941386535,7.48,2496.3,2495.7,0.02150364]
[1642941387534,7.48,2496.3,2495.6,3.84102366]
[1642941387733,1.81480457,2496.2,2495.6,3.84102366]
[1642941388781,1.81480457,2496.2,2495.6,4.14102366]
[1642941388980,7.48,2496.3,2495.6,3.84102366]
[1642941389180,7.48,2496.3,2496.2,1.80832554]
[1642941389989,2.26519586,2496.8,2496.2,1.80832554]
[1642941390192,2.26519586,2496.9,2496.3,3.5906149]
[1642941390396,2.26519586,2496.9,2496.4,0.0280838]
[1642941390586,2.26519586,2496.9,2496.3,0.9295]
[1642941390788,2.26519586,2496.9,2496.3,1.9295]
[1642941390993,2.26519586,2496.9,2496.4,3.79096814]
[1642941391187,54.33843339,2497.3,2496.6,4.2]
[1642941391388,54.33843339,2497.3,2496.7,0.20795196]
[1642941391589,54.33843339,2497.3,2496.6,0.3]
[1642941391786,54.33843339,2497.3,2496.5,0.6]
[1642941392031,54.33843339,2497.3,2497.2,2.68634151]
[1642941392231,1.10490059,2497.6,2497.2,2.68634151]
[1642941394340,7.48,2497.8,2497.2,2.68634151]
[1642941394940,7.56685181,2497.8,2497.2,2.68634151]
[1642941396377,1.32787474,2497.6,2497.2,2.68634151]
[1642941396877,0.08685181,2497.5,2497.2,2.68634151]
[1642941398479,0.08685181,2497.5,2497.1,0.2164]
[1642941398480,0.79553705,2497.4,2497.1,0.2164]
[1642941398684,0.82816901,2497.4,2497.1,0.2164]
[1642941398883,0.08685181,2497.3,2497.1,0.2164]
[1642941399079,0.88238886,2497.3,2497.1,0.2164]
[1642941399278,0.79553705,2497.2,2497.1,0.2164]
[1642941399521,0.88238886,2497.2,2497.1,1.44314867]
[1642941399725,0.88238886,2497.2,2497.1,2.65709147]
[1642941400324,1.53044095,2497.2,2497.1,2.65709147]
[1642941401129,1.44358914,2497.2,2497.1,2.65709147]
[1642941401325,1.44358914,2497.4,2497.1,2.65709147]
[1642941401726,1.53044095,2497.4,2497.1,2.65709147]
[1642941405783,1.83407348,2497.4,2497.1,2.65709147]
[1642941405983,1.83407348,2497.4,2497.1,0.2164]
[1642941405984,1.48709547,2497.3,2497.1,0.2164]
[1642941406787,1.4725684,2497.2,2497.1,0.2164]
[1642941407832,1.4725684,2497.3,2497.1,0.2164]
[1642941408036,1.4725684,2497.3,2497.1,1.50172485]
[1642941408230,1.4725684,2497.3,2497.1,2.72692696]
[1642941408630,1.4725684,2497.3,2497.1,1.50172485]
[1642941408832,1.4725684,2497.3,2497.1,1.28532485]
[1642941409632,1.4725684,2497.3,2497.1,2.64988234]
[1642941410875,1.43824434,2497.2,2497.1,2.64988234]
[1642941411774,1.43824434,2497.4,2497.1,2.64988234]
[1642941412579,1.40154616,2497.3,2497.1,2.64988234]
[1642941412779,1.40154616,2497.2,2497.1,2.64988234]
[1642941412977,1.40154616,2497.2,2497.1,1.28532485]
[1642941413579,1.40154616,2497.4,2497.1,1.28532485]
[1642941414632,1.40154616,2497.4,2497.2,1.16126289]
[1642941414831,0.27639994,2498.0,2497.3,3.63480913]
[1642941415029,1.62869812,2498.0,2497.4,0.01674373]
[1642941415330,1.35099133,2497.9,2497.3,3.63480913]
[1642941415628,2.70976755,2497.9,2497.3,3.63480913]
[1642941415834,1.35229818,2497.8,2497.3,3.63480913]
[1642941416034,1.35229818,2497.8,2497.4,1.55158689]
[1642941416433,1.35877622,2497.9,2497.4,2.15158689]
[1642941416434,0.80609447,2497.7,2497.4,2.15158689]
[1642941416635,0.80609447,2497.8,2497.5,3.74764563]
[1642941417036,7.48,2498.4,2497.6,5.4]
[1642941417242,0.80609447,2498.3,2497.8,0.01354807]
[1642941417439,0.80609447,2498.3,2497.9,1.57639152]
[1642941417636,0.80609447,2498.3,2497.9,2.48949152]
[1642941418382,7.48,2499.0,2498.0,0.3]
[1642941418580,7.48,2499.0,2498.0,3.94854441]
[1642941418776,7.48,2499.0,2497.9,2.48949152]
[1642941419179,7.48,2499.0,2498.4,1.34571025]
[1642941419180,1.50271337,2498.7,2498.4,1.34571025]
[1642941419577,1.23953336,2498.8,2498.4,1.34571025]
[1642941419780,1.23953336,2498.8,2498.4,2.15811025]
[1642941420183,1.35745436,2498.9,2498.4,2.15811025]
[1642941421181,1.35745436,2498.9,2498.4,0.8124]
[1642941421584,1.7538525,2498.8,2497.9,0.9131]
[1642941421885,1.7538525,2498.8,2497.2,0.16]
[1642941421886,0.03214707,2498.4,2497.2,0.16]
[1642941422133,0.03214707,2498.4,2497.3,1.50590466]
[1642941422134,0.56063661,2497.6,2497.3,1.50590466]
[1642941422335,0.01440636,2497.5,2496.5,3.5987679]
[1642941422533,0.01440636,2497.5,2496.4,3.7832]
[1642941422735,0.08685181,2497.5,2496.4,3.7832]
[1642941422938,1.45571339,2497.2,2496.7,1.25715601]
[1642941423332,1.45571339,2497.2,2496.3,3.5987679]
[1642941423333,2.58689775,2497.2,2496.3,3.5987679]
[1642941423537,2.58689775,2497.2,2496.0,3.5987679]
[1642941423538,1.0,2497.1,2496.0,3.5987679]
[1642941423733,0.08685181,2497.1,2496.0,3.5987679]
[1642941423932,2.58689775,2497.2,2495.8,7.65061939]
[1642941424335,2.58689775,2497.2,2496.4,1.30234034]
[1642941424535,1.45571339,2497.2,2496.9,1.10229021]
[1642941424735,1.45571339,2497.2,2495.9,0.20033]
[1642941424941,1.45571339,2497.2,2495.8,3.87593857]
[1642941424942,1.8425652,2497.2,2495.8,3.87593857]
[1642941425138,4.75078788,2497.1,2495.8,3.87593857]
[1642941425335,4.75078788,2497.1,2495.8,0.160431]
[1642941425336,28.18078788,2497.1,2495.8,0.160431]
[1642941425538,1.0910588,2497.0,2495.8,0.160431]
[1642941425799,4.65714418,2496.9,2495.8,0.160431]
[1642941426008,1.19012858,2496.4,2496.3,1.10713383]
[1642941426408,1.08685181,2496.8,2496.3,1.10713383]
[1642941426605,1.68685181,2496.8,2496.3,1.10713383]
[1642941427004,2.82801834,2496.8,2496.3,1.10713383]
[1642941427404,1.49036299,2496.7,2496.3,1.10713383]
[1642941427804,5.64721214,2496.7,2496.3,1.10713383]
[1642941428206,1.0,2496.6,2496.3,1.10713383]
[1642941428606,1.49036299,2496.7,2496.3,1.10713383]
[1642941429105,2.87327202,2496.7,2496.3,1.10713383]
[1642941429521,1.0,2496.6,2496.3,1.10713383]
[1642941430127,6.95728645,2496.7,2496.3,1.10713383]
[1642941430323,1.49036299,2496.7,2496.3,1.10713383]
[1642941431528,1.79036299,2496.7,2496.3,1.10713383]
[1642941431729,1.49036299,2496.7,2496.3,1.10713383]
[1642941433285,1.39036299,2496.7,2496.3,1.10713383]
[1642941435093,1.87991723,2496.7,2496.3,1.10713383]
[1642941435297,2.26676904,2496.7,2496.3,1.10713383]
[1642941436597,4.33671711,2497.6,2496.3,1.10713383]
[1642941436796,1.0,2497.1,2496.4,3.8987679]
[1642941437042,12.41125245,2497.8,2496.5,0.04102532]
[1642941437043,1.36173524,2497.2,2496.5,0.04102532]
[1642941437534,1.36173524,2497.2,2496.5,1.54135532]
[1642941437835,3.524e-05,2497.2,2497.1,0.71634599]
[1642941438031,3.524e-05,2497.2,2497.1,6.71667599]
[1642941438230,1.0155,2497.8,2497.1,6.71667599]
[1642941438433,0.51588773,2497.7,2497.2,0.0122781]
[1642941438634,0.51588773,2497.7,2497.2,1.31788507]
[1642941438830,0.51588773,2497.7,2497.3,0.20033]
[1642941439031,0.51588773,2497.7,2497.3,5.65924246]
[1642941439633,0.51588773,2497.7,2497.5,1.10713383]
[1642941440034,0.51588773,2497.7,2497.5,1.40713383]
[1642941440439,0.41410017,2497.6,2497.5,1.40713383]
[1642941440636,0.51680719,2498.3,2497.7,1.21756098]
[1642941440874,0.41410017,2498.2,2497.7,1.21756098]
[1642941441074,0.41410017,2498.2,2497.4,0.3]
[1642941441278,0.41410017,2498.2,2497.2,3.92632055]
[1642941441490,0.41410017,2498.2,2497.2,4.44267502]
[1642941441677,0.41410017,2498.2,2498.1,1.27788596]
[1642941442478,0.42173346,2498.2,2498.1,1.27788596]
[1642941443878,1.29963143,2498.7,2498.3,1.36950922]
[1642941444079,0.42173346,2498.6,2498.1,1.27788596]
[1642941444534,1.36173509,2498.5,2498.1,1.27788596]
[1642941444727,0.65861051,2498.4,2498.1,1.27788596]
[1642941445126,0.65861051,2498.4,2498.1,2.57660745]
[1642941446133,0.65861051,2498.3,2497.3,0.16]
[1642941446433,0.00370982,2498.5,2497.3,0.16]
[1642941446635,0.62960511,2498.5,2497.3,0.16]
[1642941447237,1.25108246,2498.2,2497.9,1.48078174]
[1642941447438,0.62960511,2498.1,2497.9,1.48078174]
[1642941447836,0.62960511,2498.1,2497.3,0.16]
[1642941448576,1.53226777,2497.7,2497.3,0.16]
[1642941448783,1.20255592,2497.6,2497.3,0.16]
[1642941448982,1.85506654,2497.6,2497.3,0.16]
[1642941449179,1.85506654,2497.6,2496.2,7.7035]
[1642941449379,0.65251062,2497.5,2496.2,7.7035]
[1642941449581,1.65251062,2497.5,2496.2,7.7035]
[1642941449780,1.39780045,2497.2,2496.7,1.19924213]
[1642941449981,0.65251062,2497.2,2496.7,1.19924213]
[1642941450182,1.80255592,2497.6,2497.2,0.63967981]
[1642941450379,0.41081857,2497.5,2497.2,0.63967981]
[1642941451180,1.68734687,2497.5,2497.2,0.63967981]
[1642941451380,0.41081857,2497.4,2497.2,0.63967981]
[1642941452327,1.2765283,2497.5,2497.2,0.63967981]
[1642941452926,1.0,2498.1,2497.2,0.63967981]
[1642941453126,1.6,2498.1,2497.2,0.63967981]
[1642941453328,1.3058226,2497.8,2497.2,0.63967981]
[1642941453530,1.6058226,2497.8,2497.2,0.63967981]
[1642941453929,1.12028003,2497.5,2497.2,0.63967981]
[1642941457578,1.3058226,2497.8,2497.2,0.63967981]
[1642941457881,3.1594,2498.2,2497.3,3.6473353]
[1642941458079,6.29269277,2498.3,2497.3,3.9473353]
[1642941458080,6.2803,2498.3,2497.3,3.9473353]
[1642941458279,3.9627,2498.3,2497.3,3.93947451]
[1642941458478,7.903,2498.6,2497.3,3.93947451]
[1642941458685,2.56076082,2498.5,2498.2,1.18380001]
[1642941458880,2.56076082,2498.5,2497.9,1.3985738]
[1642941459541,1.32929997,2498.7,2498.0,0.3]
[1642941459729,1.1911,2498.7,2498.1,0.00798302]
[1642941459927,1.1911,2498.7,2498.0,0.3]
[1642941459928,0.04,2499.1,2498.0,0.3]
[1642941460128,0.04,2499.1,2498.1,0.00973778]
[1642941460330,0.04,2499.1,2498.0,0.3]
[1642941460331,0.4704866,2499.0,2498.0,0.3]
[1642941460529,2.87152298,2498.5,2498.2,1.33391985]
[1642941460731,2.87152298,2498.5,2497.8,3.7852]
[1642941460732,3.30165151,2498.5,2497.8,3.7852]
[1642941460931,0.43012853,2498.4,2497.4,0.16]
[1642941461535,0.43012853,2498.4,2497.4,4.43243572]
[1642941461735,0.43012853,2498.4,2498.2,1.30552417]
[1642941462737,0.43012853,2498.4,2498.2,1.30413324]
[1642941464177,0.43012853,2498.4,2497.9,1.5000956]
[1642941465382,0.43012853,2498.4,2498.0,1.48691119]
[1642941466487,1.44870986,2498.5,2498.0,1.48691119]
[1642941466884,1.44870986,2498.5,2497.4,1.3879]
[1642941466885,0.43334495,2498.2,2497.4,1.3879]
[1642941467140,0.43334495,2498.2,2497.4,0.7879]
[1642941467939,0.43334495,2498.2,2497.9,1.22836541]
[1642941468340,0.43334495,2498.2,2497.4,0.7879]
[1642941468939,0.43334495,2498.2,2497.4,1.0879]
[1642941469145,0.43334495,2498.2,2497.4,1.3879]
[1642941469340,0.43334495,2498.2,2497.7,1.45584972]
[1642941469542,1.38398164,2498.1,2497.4,0.7879]
[1642941469743,1.68398164,2498.1,2497.4,0.7879]
[1642941469942,1.77083345,2498.1,2497.4,0.7879]
[1642941470342,1.47083345,2498.1,2497.4,0.7879]
[1642941470541,2.49285613,2497.7,2497.4,2.22380406]
[1642941471375,1.23298918,2497.7,2497.4,2.22380406]
[1642941471978,1.01284905,2498.3,2497.4,2.22380406]
[1642941472182,0.31284905,2498.3,2497.4,2.22380406]
[1642941472378,0.01284905,2498.3,2497.4,2.22380406]
[1642941472578,1.93194333,2498.3,2497.9,0.38618483]
[1642941472780,1.25578268,2498.1,2497.9,0.38618483]
[1642941472979,0.62155181,2498.0,2497.9,0.38618483]
[1642941473180,0.62155181,2498.0,2497.4,0.7879]
[1642941473882,0.62155181,2498.0,2497.2,0.3529]
[1642941474082,0.62155181,2498.0,2497.8,1.1669477]
[1642941474525,0.62155181,2498.0,2497.1,0.3]
[1642941474926,0.62155181,2498.0,2497.1,3.94832407]
[1642941476329,0.62155181,2498.0,2497.5,1.27522742]
[1642941476531,0.62155181,2498.0,2497.1,0.3]
[1642941476730,0.62155181,2498.0,2497.0,3.884]
[1642941476935,0.62155181,2498.0,2496.5,2.43781679]
[1642941476936,5.05744778,2498.0,2496.5,2.43781679]
[1642941477131,5.39780333,2497.9,2496.5,1.2245]
[1642941477334,5.57911268,2497.8,2496.5,1.2245]
[1642941477533,1.34437584,2497.3,2496.9,1.16663145]
[1642941477733,1.50652495,2497.7,2496.9,1.16663145]
[1642941477734,0.50652495,2497.2,2496.9,1.16663145]
[1642941478272,0.50652495,2497.6,2496.8,1.49726706]
[1642941478477,0.38886107,2497.6,2496.3,1.3341]
[1642941478673,4.94736454,2497.6,2496.3,0.16]
[1642941478873,0.38886107,2497.5,2496.2,0.20033]
[1642941479073,1.0,2497.7,2496.2,0.20033]
[1642941479074,0.38886107,2497.4,2496.2,0.20033]
[1642941479274,0.38886107,2497.3,2496.2,0.20033]
[1642941479478,0.38886107,2497.3,2496.8,1.31735013]
[1642941479479,0.38886107,2497.2,2496.8,1.31735013]
[1642941479676,0.38886107,2497.2,2496.9,1.09758371]
[1642941480275,0.38886107,2497.2,2496.9,1.69758371]
[1642941480477,0.31972616,2497.1,2496.9,1.89791371]
[1642941480677,0.31972616,2497.1,2496.9,2.89791371]
[1642941480880,11.8524,2498.2,2496.9,1.80033]
[1642941481081,1.61313815,2498.1,2497.6,1.42468964]
[1642941481281,0.31972616,2498.0,2497.6,1.42468964]
[1642941481682,0.31972616,2498.0,2496.9,0.80033]
[1642941481881,0.31972616,2498.0,2497.9,1.35603741]
[1642941482528,1.23191683,2498.3,2497.1,0.20033]
[1642941482726,1.23191683,2498.3,2496.9,0.6]
[1642941482927,4.34926675,2498.2,2496.7,0.20033]
[1642941483127,4.34926675,2498.2,2497.0,1.11681202]
[1642941483128,1.29284902,2497.6,2497.0,1.11681202]
[1642941483329,0.08685181,2498.1,2497.0,1.11681202]
[1642941483528,1.08685181,2498.1,2497.0,1.11681202]
[1642941483727,0.46129507,2497.8,2497.5,1.24801546]
[1642941483928,1.08685181,2498.1,2497.5,1.24801546]
[1642941484130,0.08685181,2498.1,2497.5,1.24801546]
[1642941484327,0.08685181,2498.1,2496.9,0.20033]
[1642941484328,1.08557333,2497.9,2496.9,0.20033]
[1642941484528,1.08557333,2497.9,2496.8,0.3]
[1642941485129,1.08557333,2497.9,2496.7,0.20033]
[1642941485627,1.18741439,2497.5,2497.2,2.68713139]
[1642941488177,1.18741439,2497.5,2497.2,1.27168484]
[1642941488377,1.18741439,2497.5,2496.7,0.20033]
[1642941488580,1.18741439,2497.5,2496.0,0.1983]
[1642941488581,0.16187652,2497.4,2496.0,0.1983]
[1642941488782,3.72882234,2497.4,2496.0,0.1983]
[1642941488986,0.16187652,2497.4,2496.0,0.1983]
[1642941489182,0.0220323,2497.2,2496.0,0.1983]
[1642941489384,1.78399369,2496.6,2496.3,1.4178593]
[1642941489631,3.8045,2497.2,2496.3,1.4178593]
[1642941489830,0.08685181,2497.3,2496.3,1.4178593]
[1642941490636,1.41868436,2496.9,2496.7,0.40422959]
[1642941491038,1.41868436,2496.9,2496.1,1.52332851]
[1642941491637,1.39422369,2497.1,2496.5,1.26520526]
[1642941492038,1.39422369,2497.1,2496.8,1.39874101]
[1642941492239,1.0,2497.3,2496.8,1.39874101]
[1642941492645,0.3,2497.3,2496.0,0.1983]
[1642941492844,1.0,2497.6,2496.0,0.1983]
[1642941492845,4.84949891,2497.5,2496.0,0.1983]
[1642941493040,1.0,2497.4,2496.0,0.1983]
[1642941493286,25.213,2497.4,2496.0,0.1983]
[1642941493487,4.56437661,2497.3,2496.0,0.1983]
[1642941493689,0.3,2497.3,2496.4,1.29082129]
[1642941493890,1.0,2497.2,2496.4,1.29082129]
[1642941494090,0.3,2497.3,2496.4,1.29082129]
[1642941494292,3.08565,2497.4,2496.4,1.29082129]
[1642941494490,6.35924286,2497.4,2496.4,1.29082129]
[1642941494690,1.33160723,2496.8,2496.4,1.29082129]
[1642941494890,2.61411151,2496.8,2496.4,1.29082129]
[1642941495300,2.61411151,2496.8,2496.0,0.1983]
[1642941495496,27.71826028,2496.7,2496.0,0.1983]
[1642941495698,32.50011209,2496.7,2496.0,0.1983]
[1642941496502,0.41070762,2496.1,2496.0,0.1983]
[1642941496703,1.23137086,2496.1,2496.0,0.1983]
[1642941496901,9.07011209,2496.7,2496.0,0.1983]
[1642941497133,5.37511209,2496.7,2496.0,0.1983]
[1642941497337,1.08685181,2496.7,2495.8,1.15625062]
[1642941497634,4.11691136,2496.7,2495.8,1.15625062]
[1642941498033,1.2444938,2496.1,2495.8,1.15625062]
[1642941498836,3.7776,2496.6,2495.8,1.15625062]
[1642941499033,1.0,2496.5,2495.8,1.15625062]
[1642941499432,1.74,2496.8,2495.8,1.15625062]
[1642941499433,2.74,2496.8,2495.8,1.15625062]
[1642941499835,2.74,2496.8,2496.3,0.66583827]
[1642941500038,1.30191209,2496.6,2496.3,0.66583827]
[1642941500886,0.09978509,2497.1,2496.7,1.15625062]
[1642941501087,3.1262,2497.2,2496.7,1.15625062]
[1642941501288,4.6734,2497.4,2496.7,1.15625062]
[1642941501487,0.783,2497.4,2496.8,0.00979854]
[1642941501685,0.783,2497.4,2496.7,1.15625062]
[1642941502084,0.783,2497.4,2496.8,1.19868215]
[1642941502085,1.3563807,2497.2,2496.8,1.19868215]
[1642941502285,1.3563807,2497.2,2496.7,1.15625062]
[1642941502484,0.34188717,2497.1,2496.7,1.15625062]
[1642941503094,1.34472767,2497.0,2495.0,0.20033]
[1642941503291,1.34472767,2497.0,2495.1,7.5269]
[1642941503292,0.01264669,2496.2,2495.1,7.5269]
[1642941503488,0.34188717,2496.7,2495.3,0.37321673]
[1642941503689,0.34188717,2496.6,2495.4,3.55214812]
[1642941503887,1.2236,2497.3,2495.5,0.20033]
[1642941503888,0.34188717,2496.5,2495.5,0.20033]
[1642941504087,0.3,2497.1,2496.8,1.14708355]
[1642941504290,0.34188717,2497.2,2496.8,1.14708355]
[1642941504554,0.61781356,2497.2,2496.7,1.24233402]
[1642941504748,0.31781356,2497.1,2496.7,1.24233402]
[1642941504952,0.31781356,2497.0,2495.9,0.20033]
[1642941505149,0.31781356,2496.9,2495.9,0.20033]
[1642941505350,0.31781356,2496.8,2495.9,0.20033]
[1642941505549,0.31781356,2496.7,2496.5,1.15281629]
[1642941505755,0.31781356,2496.6,2495.9,1.20033]
[1642941505956,1.36036293,2497.3,2495.9,4.97607315]
[1642941505957,0.31781356,2496.5,2495.9,4.97607315]
[1642941506158,0.31781356,2497.2,2495.9,4.97607315]
[1642941506355,1.2004,2497.4,2495.9,4.97607315]
[1642941506356,1.2004,2497.4,2496.0,0.01265027]
[1642941506556,1.5004,2497.4,2496.0,0.01265027]
[1642941506758,3.76321416,2497.6,2497.3,1.26083863]
[1642941506759,4.95548479,2497.6,2497.3,1.26083863]
[1642941506961,1.52049994,2497.8,2496.6,0.20033]
[1642941506962,1.80176441,2497.8,2496.6,0.20033]
[1642941507957,1.80176441,2497.8,2496.4,0.3]
[1642941507958,1.55281341,2496.7,2496.4,1.15478804]
[1642941508156,0.08685181,2497.7,2496.4,1.15478804]
[1642941508157,0.01295262,2497.6,2496.4,1.15478804]
[1642941509188,1.29782892,2497.0,2496.4,1.15478804]
[1642941509387,1.29782892,2497.0,2496.4,1.75478804]
[1642941509988,0.01295262,2497.6,2496.4,1.75478804]
[1642941510591,1.23167087,2497.0,2496.4,1.75478804]
[1642941510790,1.23167087,2497.0,2496.3,1.28655302]
[1642941511190,1.33269604,2496.8,2496.3,1.28655302]
[1642941511390,1.2326,2497.4,2496.3,1.28655302]
[1642941512038,1.2326,2497.4,2496.4,0.3]
[1642941512430,1.26398414,2496.9,2496.3,1.28655302]
[1642941512631,1.342663,2496.8,2496.5,1.40697771]
[1642941513331,1.342663,2496.8,2496.3,1.28655302]
[1642941513535,1.2326,2497.4,2496.3,1.28655302]
[1642941514532,1.14415784,2497.2,2496.8,1.32213201]
[1642941514732,0.01295262,2497.6,2496.8,1.32213201]
[1642941514935,0.01295262,2497.6,2496.9,0.00669223]
[1642941515133,0.01295262,2497.6,2496.8,1.32213201]
[1642941515784,1.45458127,2497.2,2496.8,1.32213201]
[1642941516886,1.45458127,2497.2,2496.7,1.53996385]
[1642941517085,1.45458127,2497.2,2496.7,1.53886666]
[1642941517486,1.45458127,2497.2,2496.1,5.36375656]
[1642941517688,1.45458127,2497.2,2496.1,1.80033]
[1642941517886,0.23863063,2496.7,2496.4,1.37579616]
[1642941518087,0.23863063,2496.7,2496.1,0.3]
[1642941518291,0.23863063,2496.7,2496.0,3.7665]
[1642941518486,1.54918309,2496.4,2496.0,3.7665]
[1642941518690,0.23863063,2496.7,2495.9,1.4347932]
[1642941519089,0.23863063,2496.7,2496.2,1.43159733]
[1642941519931,1.18097039,2496.6,2496.2,1.43159733]
[1642941520134,1.18097039,2496.6,2495.9,1.4347932]
[1642941520332,1.18097039,2496.6,2495.6,1.21259774]
[1642941520333,4.28413598,2496.5,2495.5,3.9724]
[1642941520533,1.0,2496.4,2495.5,3.9724]
[1642941520734,4.6298623,2496.5,2495.5,3.9724]
[1642941520936,1.0,2496.4,2495.5,3.9724]
[1642941521135,1.0,2496.4,2495.3,1.2387]
[1642941521338,1.0,2496.4,2495.9,1.47154954]
[1642941521339,1.12696852,2496.2,2495.9,1.47154954]
[1642941521735,1.0,2496.5,2495.9,1.47154954]
[1642941521935,1.18097039,2496.6,2495.9,1.47154954]
[1642941522835,1.28804345,2496.2,2495.9,1.47154954]
[1642941523290,1.28804345,2496.2,2494.9,4.00183275]
[1642941523490,1.28804345,2496.2,2494.9,4.00027095]
[1642941523690,1.28804345,2496.2,2495.0,3.40835511]
[1642941523894,1.28804345,2496.2,2495.0,3.60868511]
[1642941524092,1.28804345,2496.2,2495.8,1.36499828]
[1642941524291,1.58804345,2496.2,2494.9,4.00027095]
[1642941524492,4.55496265,2496.1,2495.0,3.40852282]
[1642941524692,0.08685181,2496.1,2495.0,3.40852282]
[1642941525292,0.08685181,2496.1,2495.6,1.32564004]
[1642941525293,1.53179001,2495.7,2495.6,1.32564004]
[1642941525500,0.51568157,2495.9,2494.6,0.0015618]
[1642941525501,1.28159474,2495.3,2494.6,0.0015618]
[1642941525695,1.58159474,2495.3,2494.6,0.0015618]
[1642941525894,1.28159474,2495.3,2494.6,0.0015618]
[1642941526095,1.28159474,2495.3,2494.5,3.40920196]
[1642941526292,1.28159474,2495.3,2493.9,9.23032403]
[1642941526498,1.41971467,2494.8,2494.6,1.17958785]
[1642941526696,1.00335,2495.6,2494.6,1.17958785]
[1642941527163,5.1073,2495.7,2494.6,1.17958785]
[1642941527560,1.42595392,2495.5,2495.2,0.64250104]
[1642941527761,1.37940795,2495.4,2495.2,0.64250104]
[1642941527960,0.13819997,2495.8,2495.2,0.64250104]
[1642941528961,5.0636,2496.1,2495.4,1.31563328]
[1642941529166,3.8344,2496.1,2495.4,1.31563328]
[1642941529362,4.3984,2496.2,2495.4,1.31563328]
[1642941529561,3.2399,2496.2,2495.4,1.31563328]
[1642941530162,1.24061849,2495.8,2495.4,1.31563328]
[1642941530563,3.2399,2496.2,2495.4,1.61563328]
[1642941530987,3.2399,2496.2,2495.5,0.3]
[1642941531388,0.2221,2496.2,2495.5,0.3]
[1642941531591,0.2221,2496.2,2495.9,1.24697992]
[1642941531792,0.2221,2496.2,2495.4,1.61563328]
[1642941531793,0.2221,2496.2,2495.4,0.3]
[1642941531990,0.2221,2496.2,2494.9,1.1617618]
[1642941531991,0.2221,2496.2,2495.0,0.20033]
[1642941533092,0.2221,2496.2,2495.9,1.31823133]
[1642941534298,0.2221,2496.2,2496.0,0.51526719]
[1642941537045,0.19950134,2496.6,2496.0,0.51526719]
[1642941537348,0.19950134,2496.6,2496.4,1.24308441]
[1642941539493,0.19950134,2496.6,2495.9,0.2841]
[1642941539691,0.19950134,2496.6,2495.8,0.21]
[1642941540490,0.33770131,2496.8,2496.4,1.29927008]
[1642941541391,0.33770131,2496.8,2496.4,1.29815706]
[1642941541593,0.19950134,2496.6,2496.4,1.29815706]
[1642941542040,0.19950134,2496.6,2495.8,0.21]
[1642941543241,0.19950134,2496.6,2496.5,1.47727669]
[1642941545544,0.19950134,2496.7,2496.5,1.47727669]
[1642941545798,0.19950134,2496.7,2495.8,0.21]
[1642941546789,0.19950134,2496.2,2496.0,1.20680412]
[1642941546992,0.19950134,2496.2,2495.8,0.21]
[1642941547591,1.19950134,2496.2,2495.8,0.21]
[1642941548091,1.36768052,2495.9,2495.8,0.21]
[1642941548292,1.64499108,2495.9,2495.8,0.21]
[1642941549197,4.43349553,2495.9,2495.8,0.0001]
[1642941549394,27.86349553,2495.9,2495.8,0.0001]
[1642941549639,29.16349553,2495.9,2495.2,0.01275988]
[1642941549843,0.19950134,2495.6,2495.2,0.01275988]
[1642941550039,1.48109797,2495.3,2495.2,0.01275988]
[1642941550238,2.59071848,2495.3,2494.9,1.38542611]
[1642941550839,1.30912185,2495.3,2494.9,1.38542611]
[1642941551639,2.00333,2495.7,2494.9,1.38542611]
[1642941551640,0.19950134,2495.6,2494.9,1.38542611]
[1642941552040,0.19950134,2495.6,2494.7,1.28807674]
[1642941552041,0.19950134,2495.6,2494.7,1.58807674]
[1642941552445,0.19950134,2495.6,2494.7,1.88807674]
[1642941552843,0.19950134,2495.4,2494.7,1.88807674]
[1642941553142,0.19950134,2495.4,2495.3,1.56076348]
[1642941554086,0.19950134,2495.4,2494.4,1.2383]
[1642941554288,0.19950134,2495.4,2494.3,4.93623]
[1642941554491,0.19950134,2495.4,2494.4,3.40942344]
[1642941554693,0.19950134,2495.4,2494.3,3.7359]
[1642941554892,0.19950134,2495.4,2493.9,8.653]
[1642941555097,0.19950134,2495.4,2494.2,1.09690638]
[1642941555098,0.18331854,2494.5,2494.2,1.09690638]
[1642941555299,2.2415,2495.8,2494.3,7.45]
[1642941555495,2.2415,2495.8,2494.4,0.01226044]
[1642941555496,1.2415,2495.8,2494.4,0.01226044]
[1642941555692,3.8525,2495.7,2494.4,0.01226044]
[1642941555991,3.8525,2495.7,2494.5,0.20033]
[1642941556192,1.0,2495.6,2494.4,0.01226044]
[1642941556391,1.40980988,2495.4,2494.4,0.01226044]
[1642941556594,3.8525,2495.7,2494.4,0.21259044]
[1642941557030,1.2415,2495.8,2494.4,0.21259044]
[1642941557641,2.64147315,2495.7,2495.2,1.26063869]
[1642941557838,6.93439172,2495.7,2494.4,0.21259044]
[1642941558038,1.0,2495.6,2494.1,0.0015618]
[1642941558239,6.06474718,2495.5,2494.1,0.0015618]
[1642941558438,6.06474718,2495.5,2494.0,0.1603]
[1642941558439,23.43,2495.4,2494.0,0.1603]
[1642941558639,0.47354215,2494.9,2494.5,1.11563353]
[1642941558837,1.85653607,2494.9,2494.5,1.11563353]
[1642941559237,1.0,2495.2,2494.5,1.11563353]
[1642941559238,1.3,2495.2,2494.5,1.11563353]
[1642941559440,1.6,2495.2,2494.5,1.11563353]